bitfinex/quotes_ETHUSD_20260129
["timestamp","ask_amount","ask_price","bid_price","bid_amount"]
[1769651567823,1.82160069,2994.4,2993.6,1.60349705]
[1769651568322,1.82160069,2994.4,2993.7,1.69386211]
[1769651569432,0.001,2994.2,2993.7,1.69386211]
[1769651572400,0.001,2994.2,2993.3,0.002]
[1769651572401,0.9877089,2994.2,2993.3,0.002]
[1769651572627,0.9877089,2994.2,2993.4,4.0]
[1769651573227,0.9877089,2994.2,2993.3,0.002]
[1769651574352,0.9867089,2993.3,2992.5,0.002]
[1769651574532,0.7018116,2993.2,2992.5,4.83741651]
[1769651574729,0.9867089,2993.3,2992.5,4.002]
[1769651575059,0.9867089,2993.3,2992.5,0.002]
[1769651576369,0.97279695,2993.1,2992.5,0.002]
[1769651576853,0.97279695,2993.0,2992.5,0.002]
[1769651578435,1.80810718,2992.9,2992.5,0.002]
[1769651578843,2.5070651,2993.1,2992.5,0.002]
[1769651579020,0.97279695,2993.0,2992.5,0.002]
[1769651580350,0.97279695,2992.9,2992.5,0.002]
[1769651580857,0.83533814,2992.8,2992.5,0.002]
[1769651581035,0.97279695,2992.8,2992.5,0.002]
[1769651581966,1.80809854,2993.0,2992.5,0.002]
[1769651582648,0.97279695,2993.0,2992.5,0.002]
[1769651583561,0.97279695,2993.3,2992.5,0.002]
[1769651583740,0.7,2993.5,2992.7,0.96905744]
[1769651584082,1.80784246,2993.9,2992.9,0.96905744]
[1769651584660,4.04104864,2994.0,2993.0,0.96905744]
[1769651584661,0.001,2994.0,2993.0,0.96905744]
[1769651584828,0.001,2994.0,2993.2,0.96905744]
[1769651585029,0.001,2994.0,2993.1,0.83525441]
[1769651585350,0.97379695,2994.0,2993.2,14.68043119]
[1769651585740,0.97379695,2994.0,2993.2,0.18043119]
[1769651586058,0.97379695,2994.0,2992.9,0.83529308]
[1769651586369,0.97379695,2994.0,2993.0,4.83527575]
[1769651586551,0.97379695,2994.0,2993.0,4.0]
[1769651586729,0.83503123,2993.9,2993.0,4.83528107]
[1769651586931,0.97279695,2993.8,2993.1,0.48352811]
[1769651589172,0.83508701,2993.7,2993.1,0.48352811]
[1769651589664,1.80788396,2993.7,2993.1,0.48352811]
[1769651589850,0.97279695,2993.1,2992.5,0.002]
[1769651590864,0.97279695,2993.1,2992.5,0.83741847]
[1769651591161,0.97279695,2993.2,2992.5,0.002]
[1769651592079,0.97279695,2993.1,2992.5,0.002]
[1769651592567,0.97279695,2993.0,2992.5,0.002]
[1769651593157,0.97279695,2993.0,2992.7,0.002]
[1769651593463,0.83531023,2992.9,2992.7,0.002]
[1769651593642,0.97279695,2992.8,2992.7,0.002]
[1769651594553,2.50806963,2993.1,2992.7,0.002]
[1769651594866,0.97279695,2992.9,2992.4,0.002]
[1769651595450,1.80813509,2992.8,2992.4,0.002]
[1769651596471,0.97279695,2992.7,2992.4,0.002]
[1769651596668,0.83533814,2992.8,2992.4,0.002]
[1769651596872,0.83519861,2993.3,2992.4,0.002]
[1769651597074,0.41759127,2993.2,2992.4,0.002]
[1769651597274,1.39038822,2993.2,2992.4,0.002]
[1769651597478,0.97279695,2992.9,2992.4,0.002]
[1769651598891,0.97279695,2992.9,2992.2,0.002]
[1769651599169,0.97279695,2992.9,2991.9,0.002]
[1769651599370,0.97279695,2992.7,2991.9,0.002]
[1769651599544,0.97279695,2992.5,2991.9,0.002]
[1769651599743,0.97279695,2992.3,2991.3,0.002]
[1769651601487,0.97279695,2992.1,2991.3,0.002]
[1769651605403,0.97567961,2991.9,2991.5,0.002]
[1769651605680,0.97667961,2991.9,2990.9,0.8358688]
[1769651606256,0.97667961,2991.9,2990.9,1.77580992]
[1769651606456,0.97667961,2991.9,2991.0,0.93994112]
[1769651607379,0.97667961,2991.9,2990.8,3.34356897]
[1769651607380,0.83561735,2991.8,2990.8,0.93994112]
[1769651607753,0.83660953,2991.9,2990.8,0.93994112]
[1769651608166,0.001,2991.9,2990.8,0.93994112]
[1769651608361,0.001,2991.9,2990.6,0.04986785]
[1769651608362,3.34193173,2992.3,2991.1,0.93994112]
[1769651608562,0.83539397,2992.6,2991.1,0.93994112]
[1769651608962,0.9338683,2992.5,2990.6,0.97405744]
[1769651609246,4.04157588,2992.7,2991.0,0.83584085]
[1769651609247,0.9338683,2992.1,2991.0,0.83584085]
[1769651609484,0.83550564,2992.2,2991.1,0.97405744]
[1769651611053,0.83549384,2992.3,2991.1,0.97405744]
[1769651611252,0.83539397,2992.6,2991.3,0.97405744]
[1769651611458,1.6338683,2993.1,2991.3,0.97405744]
[1769651611698,0.9338683,2992.9,2991.5,0.97405744]
[1769651612054,0.9338683,2992.9,2991.4,0.18098424]
[1769651612255,0.9338683,2992.9,2991.1,0.8357988]
[1769651612489,0.9338683,2992.8,2991.1,0.8357988]
[1769651612692,0.9338683,2992.7,2991.0,3.8]
[1769651612880,0.9338683,2992.7,2991.1,0.8635851]
[1769651613387,0.9338683,2992.5,2991.1,0.8635851]
[1769651613791,0.9338683,2992.5,2991.0,3.8]
[1769651613974,0.9338683,2992.5,2991.0,4.63583776]
[1769651614169,0.9338683,2992.5,2991.0,3.8]
[1769651615908,0.9338683,2992.3,2990.7,2.24174729]
[1769651616065,0.9338683,2992.1,2990.8,0.22417473]
[1769651616394,0.9338683,2991.9,2990.8,0.22417473]
[1769651616693,0.9338683,2991.7,2990.2,0.83604868]
[1769651616861,0.9338683,2991.7,2990.3,4.0]
[1769651617463,0.9338683,2991.7,2991.2,0.002]
[1769651617662,0.9338683,2991.7,2990.2,0.8360437]
[1769651617895,0.9338683,2991.5,2991.0,0.002]
[1769651618200,0.9338683,2991.3,2991.0,0.002]
[1769651618495,0.9338683,2991.3,2990.1,0.002]
[1769651618662,0.9338683,2991.3,2990.2,0.83604259]
[1769651618866,0.7,2991.2,2990.1,1.81412987]
[1769651619126,0.7,2991.2,2990.2,0.51585826]
[1769651619299,1.6338683,2991.2,2990.2,0.51585826]
[1769651619478,0.9338683,2991.1,2990.1,0.002]
[1769651619874,0.9338683,2990.9,2990.1,0.83809236]
[1769651620075,0.9338683,2990.9,2990.1,0.83807034]
[1769651620271,0.9338683,2990.9,2990.2,0.41824944]
[1769651620471,0.83584085,2991.0,2990.2,0.41824944]
[1769651621495,0.83584085,2991.0,2990.1,0.83809153]
[1769651621801,0.83584085,2991.0,2990.1,0.002]
[1769651622102,0.9338683,2991.0,2990.1,0.002]
[1769651623169,0.83581291,2991.1,2990.1,0.97805744]
[1769651624072,3.34321081,2991.2,2990.2,0.83606447]
[1769651624266,4.18879076,2991.2,2990.2,1.35192226]
[1769651624973,0.83578496,2991.2,2990.3,0.97605744]
[1769651626001,3.34304661,2991.3,2990.3,1.81207986]
[1769651626771,0.83575702,2991.3,2990.3,1.81207986]
[1769651627375,0.9338683,2991.9,2990.4,0.97605744]
[1769651627574,0.9338683,2991.9,2990.6,0.97605744]
[1769651628200,0.83561735,2991.8,2990.7,1.81198213]
[1769651628806,0.83561735,2991.8,2990.8,0.97605744]
[1769651629469,0.83561735,2991.8,2990.6,0.8359406]
[1769651629470,0.9338683,2991.7,2990.6,0.8359406]
[1769651629704,0.9338683,2991.6,2990.6,1.27204722]
[1769651630094,0.001,2991.3,2990.6,1.27204722]
[1769651630805,0.001,2991.3,2990.5,3.52712557]
[1769651630806,0.9338683,2991.2,2990.5,0.002]
[1769651632212,0.9338683,2991.0,2990.5,0.002]
[1769651634624,1.76973037,2991.0,2990.5,0.002]
[1769651634804,0.83584137,2991.0,2990.5,0.002]
[1769651635318,0.83582757,2991.1,2990.5,0.002]
[1769651636289,1.41722183,2991.1,2990.5,0.002]
[1769651636487,0.90741832,2991.0,2990.5,0.002]
[1769651636730,1.74327697,2991.0,2990.5,0.002]
[1769651636929,0.83585865,2991.0,2990.5,0.002]
[1769651637551,0.8358001,2991.2,2990.5,0.002]
[1769651638833,0.90741832,2990.8,2989.8,0.002]
[1769651639723,0.90741832,2990.8,2989.2,0.8363303]
[1769651639925,0.90741832,2990.6,2989.3,0.83630174]
[1769651640329,0.90741832,2990.6,2989.3,0.41837696]
[1769651640628,0.8359806,2990.5,2989.3,0.83630157]
[1769651640802,0.90741832,2990.4,2989.1,0.05186785]
[1769651641510,0.90741832,2990.4,2989.2,0.83632706]
[1769651642714,0.83603651,2990.3,2989.3,0.002]
[1769651643600,2.44344613,2990.4,2989.3,0.002]
[1769651644024,2.44344613,2990.4,2989.4,0.17529952]
[1769651644537,0.83602781,2990.4,2989.4,0.17529952]
[1769651644740,3.34400063,2990.5,2989.4,1.92623595]
[1769651645238,3.34400063,2990.5,2989.4,1.08996766]
[1769651645394,4.25141895,2990.5,2989.4,1.08996766]
[1769651645594,5.16453468,2990.5,2989.5,0.19282663]
[1769651646201,0.90741832,2990.4,2989.5,0.19282663]
[1769651646534,0.90741832,2990.4,2989.3,0.83829618]
[1769651646712,0.83603651,2990.3,2989.3,0.002]
[1769651646914,1.74345483,2990.3,2989.3,0.002]
[1769651647432,0.90741832,2990.3,2989.3,0.002]
[1769651649240,1.74345688,2990.3,2989.3,0.002]
[1769651649430,0.90741832,2990.3,2989.3,0.002]
[1769651649632,1.74347327,2990.3,2989.3,0.002]
[1769651650117,0.90741832,2990.2,2989.3,0.42840448]
[1769651650322,0.90741832,2990.2,2989.3,0.002]
[1769651650817,0.90741832,2990.0,2989.1,0.002]
[1769651651023,0.83609243,2990.1,2988.5,0.83653581]
[1769651651024,0.90741832,2989.8,2988.5,0.83653581]
[1769651652320,0.90741832,2989.8,2988.1,14.5]
[1769651652524,0.90741832,2989.8,2988.4,0.83656511]
[1769651652825,0.90741832,2989.8,2988.2,4.79648816]
[1769651652826,0.90741832,2989.4,2988.2,1.45]
[1769651653026,0.90741832,2989.2,2988.2,0.83661814]
[1769651655117,0.83633832,2989.3,2988.1,0.91466814]
[1769651655313,0.83630167,2989.4,2988.1,0.91466814]
[1769651655552,0.83622108,2989.7,2988.1,0.91466814]
[1769651655758,0.90741832,2989.8,2988.7,0.002]
[1769651656048,1.74360899,2989.8,2988.7,14.5]
[1769651656572,1.74360899,2989.8,2988.6,0.91466814]
[1769651657054,1.74360899,2989.8,2988.7,0.83648409]
[1769651657237,1.74360899,2989.8,2988.8,1.95970886]
[1769651657610,0.90741832,2989.7,2988.8,1.95970886]
[1769651657856,0.90741832,2989.7,2988.5,0.002]
[1769651658815,0.90741832,2989.6,2988.5,0.002]
[1769651659026,0.90741832,2989.4,2988.5,0.002]
[1769651660540,0.90741832,2989.2,2988.5,0.002]
[1769651660711,0.90741832,2989.2,2988.0,0.83666442]
[1769651661126,0.90741832,2989.0,2988.2,0.83662405]
[1769651661526,0.90741832,2989.0,2988.1,1.25517265]
[1769651661943,1.74375936,2989.3,2988.1,1.25517265]
[1769651662135,1.74375936,2989.3,2988.2,0.46018491]
[1769651662540,0.90741832,2989.2,2988.2,0.46018491]
[1769651663044,0.83637215,2989.1,2988.2,0.46018491]
[1769651663239,1.74379047,2989.1,2988.2,0.83662059]
[1769651663632,0.90741832,2989.1,2988.2,0.83662059]
[1769651664040,0.90741832,2989.1,2988.1,0.83663497]
[1769651664237,0.90741832,2989.1,2987.9,0.002]
[1769651664429,0.90741832,2989.1,2988.2,0.83662179]
[1769651664626,1.48633162,2989.1,2988.1,0.83662704]
[1769651664832,2.18733162,2989.1,2988.2,0.83662085]
[1769651665041,2.18733162,2989.1,2988.2,0.83662123]
[1769651665229,0.83638674,2989.1,2988.2,0.83661988]
[1769651665426,0.83631619,2989.3,2988.2,0.83661988]
[1769651665750,0.83631619,2989.3,2988.2,1.7617993]
[1769651667051,0.93811736,2989.2,2988.2,0.83661988]
[1769651667250,1.77447823,2989.2,2988.0,0.92517942]
[1769651667432,0.83636087,2989.2,2988.1,1.10156817]
[1769651667628,0.93811736,2989.1,2988.1,0.17638875]
[1769651667840,0.93811736,2989.1,2988.1,14.5]
[1769651668040,0.93811736,2989.1,2987.9,0.002]
[1769651668321,0.93811736,2989.1,2988.4,0.002]
[1769651668520,0.93911736,2989.1,2987.9,0.002]
[1769651668833,0.93911736,2989.1,2988.1,0.002]
[1769651669040,0.98229555,2988.9,2988.1,0.002]
[1769651669339,0.8364561,2988.8,2988.1,0.002]
[1769651669521,1.81875165,2988.8,2988.1,0.002]
[1769651669717,0.98229555,2988.7,2987.6,0.83679207]
[1769651669922,0.8364561,2988.8,2987.6,0.83679207]
[1769651669923,0.98229555,2988.5,2987.6,0.83679207]
[1769651670324,0.17754782,2989.0,2987.6,0.83679207]
[1769651670325,0.44783609,2989.9,2988.2,1.02116695]
[1769651670635,0.98229555,2989.9,2988.3,1.39764911]
[1769651670829,0.98229555,2989.7,2987.9,0.9712991]
[1769651671152,0.98229555,2989.4,2988.0,14.5]
[1769651671339,0.98229555,2989.4,2987.7,0.04986785]
[1769651671545,0.98229555,2989.2,2987.8,0.83673605]
[1769651671850,0.98229555,2989.2,2987.9,14.5]
[1769651673854,0.98229555,2989.2,2988.0,0.83668005]
[1769651674225,1.81864541,2989.2,2988.0,0.83668005]
[1769651674427,0.98229555,2989.2,2988.0,0.83668005]
[1769651674628,0.98229555,2989.2,2988.1,1.96546994]
[1769651674833,1.81852782,2989.6,2988.2,0.9712991]
[1769651675458,0.98229555,2989.5,2987.8,0.9712991]
[1769651675663,0.98229555,2989.4,2987.6,0.83678307]
[1769651675833,0.98229555,2989.0,2987.4,1.67240069]
[1769651676035,0.98229555,2989.0,2987.5,0.83681773]
[1769651676225,0.98229555,2988.6,2987.3,0.002]
[1769651676536,0.98229555,2988.4,2987.3,0.002]
[1769651676859,0.98229555,2988.2,2987.3,0.002]
[1769651677748,0.98229555,2988.0,2987.0,0.0228493]
[1769651679768,0.98229555,2988.0,2987.0,0.85980775]
[1769651679970,1.81891438,2988.3,2987.0,0.85980775]
[1769651680174,0.98229555,2988.3,2987.1,0.42076484]
[1769651680371,0.98229555,2988.3,2987.2,0.002]
[1769651680655,0.001,2987.8,2987.2,0.002]
[1769651684054,0.98229555,2988.4,2987.2,0.002]
[1769651684241,1.81887787,2988.4,2987.2,0.002]
[1769651686244,0.98229555,2988.3,2987.2,0.002]
[1769651688175,1.8189196,2988.2,2987.2,0.002]
[1769651688971,0.98229555,2988.1,2987.2,0.002]
[1769651690165,0.98229555,2987.9,2987.2,0.002]
[1769651690977,0.98229555,2987.9,2987.0,0.0228493]
[1769651691180,0.83668005,2988.0,2986.0,1.02116695]
[1769651691181,0.98229555,2987.7,2986.0,1.02116695]
[1769651691359,0.98229555,2987.7,2986.7,0.83702803]
[1769651691684,0.98229555,2987.7,2986.7,3.34815365]
[1769651691878,0.98229555,2987.7,2986.9,0.83698475]
[1769651692068,0.18189756,2987.8,2986.9,0.83698475]
[1769651692249,1.01865325,2987.8,2986.6,0.83707225]
[1769651692445,1.01865325,2987.8,2986.7,0.51566604]
[1769651692679,1.01865325,2987.8,2987.2,0.002]
[1769651693052,0.98229555,2987.7,2987.2,0.002]
[1769651693462,0.98229555,2987.7,2987.0,0.002]
[1769651693676,1.51717678,2987.7,2987.0,0.002]
[1769651694198,0.83679207,2987.6,2987.0,0.002]
[1769651695179,1.81907346,2987.7,2987.0,0.002]
[1769651698180,0.83682008,2987.5,2987.0,0.002]
[1769651698381,0.51112105,2987.4,2987.0,0.002]
[1769651698566,0.83682008,2987.5,2987.0,0.002]
[1769651700254,1.76393018,2987.5,2987.0,0.002]
[1769651700451,0.9271101,2987.4,2987.0,0.002]
[1769651700690,0.9271101,2987.4,2986.4,0.83711082]
[1769651701084,0.83676547,2987.7,2986.5,0.90173214]
[1769651701289,0.83676547,2987.7,2986.6,1.07561644]
[1769651702195,0.9271101,2987.6,2986.6,0.1738843]
[1769651702401,0.9271101,2987.6,2986.3,0.83713018]
[1769651702402,0.9271101,2987.4,2986.3,0.83713018]
[1769651702554,0.9271101,2987.4,2986.4,0.8371232]
[1769651702758,0.9271101,2987.4,2986.4,0.83711366]
[1769651703259,0.9271101,2987.4,2986.3,0.83714231]
[1769651703461,0.9271101,2987.2,2986.0,0.83722119]
[1769651703673,0.9271101,2987.2,2986.1,0.83720672]
[1769651703878,0.9271101,2987.2,2986.0,0.83722394]
[1769651704308,0.9271101,2987.0,2985.9,0.83726849]
[1769651704604,0.17640422,2986.9,2985.9,0.83726849]
[1769651704812,0.9271101,2987.0,2985.9,0.83726849]
[1769651705085,0.83692206,2987.2,2985.9,0.88713634]
[1769651705287,2.01049932,2987.3,2986.1,0.04986785]
[1769651705593,0.9281101,2987.9,2986.4,0.90173214]
[1769651705889,0.001,2987.9,2986.7,0.95159999]
[1769651706092,0.001,2987.9,2986.9,0.04986785]
[1769651706394,0.001,2987.9,2987.0,0.83696016]
[1769651706562,0.001,2987.9,2987.1,0.42346686]
[1769651707066,0.83656952,2988.4,2987.2,0.90173214]
[1769651707470,1.76363049,2988.6,2987.2,0.90173214]
[1769651708073,0.9271101,2988.9,2987.4,0.95159999]
[1769651708477,0.8364561,2988.8,2987.5,0.83682008]
[1769651708678,1.34739516,2988.8,2987.6,0.51357004]
[1769651709088,0.51093906,2988.8,2987.6,0.56343789]
[1769651709305,0.83637215,2989.1,2987.8,0.95159999]
[1769651709599,1.76348225,2989.1,2987.8,0.04986785]
[1769651710178,0.9271101,2989.0,2987.8,0.04986785]
[1769651710379,0.9271101,2988.8,2987.8,0.04986785]
[1769651710597,1.76356789,2988.8,2987.9,0.83670805]
[1769651711294,0.83642025,2989.0,2987.9,0.83670805]
[1769651711720,1.76353035,2989.0,2987.9,0.83670805]
[1769651711904,1.76353035,2989.0,2988.0,0.42334081]
[1769651713103,1.76353035,2989.0,2988.1,0.83665205]
[1769651714405,0.9271101,2989.5,2988.1,1.73838419]
[1769651714605,0.9271101,2989.5,2988.2,0.90173214]
[1769651714772,0.9271101,2989.5,2988.3,0.1788252]
[1769651714977,0.9271101,2989.5,2988.1,0.8865199]
[1769651715178,0.9271101,2989.3,2988.1,0.8865199]
[1769651715586,0.9271101,2989.6,2988.3,0.95159999]
[1769651715889,0.9271101,2989.9,2988.5,0.95159999]
[1769651716095,0.9271101,2989.9,2988.7,0.04986785]
[1769651716416,0.76128119,2989.9,2988.7,0.04986785]
[1769651717109,0.83617633,2989.8,2988.7,0.88633523]
[1769651717319,1.76328643,2989.8,2988.7,0.88633523]
[1769651717489,1.76328643,2989.8,2988.8,0.42323466]
[1769651718017,0.9271101,2989.7,2988.8,0.42323466]
[1769651718420,0.83617633,2989.8,2988.8,0.42323466]
[1769651720020,0.9271101,2989.9,2988.9,0.83642811]
[1769651720519,0.83711125,2990.1,2988.9,1.73816025]
[1769651720730,1.76422135,2990.1,2989.0,0.55071438]
[1769651721322,0.9271101,2990.0,2989.0,0.55071438]
[1769651721526,0.83711125,2990.1,2989.0,0.55071438]
[1769651722026,0.001,2990.1,2989.1,0.83637215]
[1769651722322,0.001,2990.1,2989.2,0.47325751]
[1769651722523,0.001,2990.1,2989.3,0.90173214]
[1769651723123,0.001,2990.1,2989.2,0.47325751]
[1769651723329,0.9281101,2990.1,2989.2,0.47325751]
[1769651723528,0.9281101,2990.1,2989.0,0.8363862]
[1769651724053,0.8361204,2990.0,2988.8,0.8364561]
[1769651725155,0.001,2990.1,2989.2,0.04986785]
[1769651725315,0.001,2990.1,2989.4,0.04986785]
[1769651726161,0.001,2990.1,2989.6,0.04986785]
[1769651727041,0.83589781,2990.8,2990.0,0.04986785]
[1769651727350,0.83589781,2990.8,2990.3,0.04986785]
[1769651727919,1.79853301,2990.8,2990.3,0.04986785]
[1769651728746,0.94915574,2991.1,2990.5,0.04986785]
[1769651728959,0.94915574,2991.1,2990.7,0.04986785]
[1769651729265,0.83677645,2991.3,2990.7,0.04986785]
[1769651729430,0.001,2991.3,2990.7,0.04986785]
[1769651729955,0.001,2991.3,2990.9,0.04986785]
[1769651731273,0.001,2991.3,2990.5,0.04986785]
[1769651731553,0.95015574,2991.3,2990.5,0.04986785]
[1769651731718,0.95015574,2991.3,2990.3,0.04986785]
[1769651731719,0.95015574,2991.3,2989.0,0.002]
[1769651731919,0.94915574,2990.9,2989.2,0.04986785]
[1769651732150,0.94915574,2990.7,2989.2,1.29637982]
[1769651732656,0.94915574,2990.7,2989.4,0.04986785]
[1769651734045,0.83595265,2990.6,2989.5,0.83626024]
[1769651734247,0.83595265,2990.6,2989.6,0.42311691]
[1769651734838,0.83595265,2990.6,2989.6,0.47298476]
[1769651736158,0.83595265,2990.6,2989.6,1.30920592]
[1769651737255,0.94915574,2990.5,2989.6,0.42311691]
[1769651737457,0.94915574,2990.5,2989.2,0.46004142]
[1769651737754,0.94915574,2990.5,2989.2,0.88620918]
[1769651738157,0.94915574,2990.5,2989.3,0.83631332]
[1769651738957,0.94915574,2990.3,2989.3,0.83631332]
[1769651740563,0.94915574,2990.3,2989.5,0.002]
[1769651740865,0.83609243,2990.1,2989.5,0.002]
[1769651743268,4.29352549,2990.2,2989.5,0.002]
[1769651743654,1.78522021,2990.2,2989.5,0.002]
[1769651743850,0.83605486,2990.3,2989.5,0.002]
[1769651744239,1.34897957,2990.3,2989.5,0.002]
[1769651744481,0.94915574,2990.2,2989.5,0.002]
[1769651745154,0.94915574,2990.2,2989.0,0.002]
[1769651745356,0.94915574,2990.0,2989.0,0.002]
[1769651745878,0.94915574,2990.0,2988.8,0.002]
[1769651746054,0.94915574,2989.8,2988.8,0.002]
[1769651746254,0.7,2989.8,2988.8,0.002]
[1769651746552,0.94915574,2989.7,2988.8,0.002]
[1769651746746,0.7,2989.8,2988.8,0.002]
[1769651747075,1.64915574,2990.0,2988.8,0.002]
[1769651747275,0.24852482,2989.9,2988.8,0.002]
[1769651747767,0.83617633,2989.8,2988.8,0.002]
[1769651747976,1.78533207,2989.8,2988.8,0.002]
[1769651750869,1.08467986,2989.9,2988.8,0.98360009]
[1769651751071,0.83615504,2989.9,2988.9,1.03146794]
[1769651751591,1.78519225,2990.3,2988.9,1.03146794]
[1769651751740,2.28451649,2990.3,2988.9,1.03146794]
[1769651751947,2.28451649,2990.3,2989.0,1.81800022]
[1769651752709,2.28451649,2990.3,2989.0,1.82000022]
[1769651752992,3.34389496,2990.6,2989.1,1.03146794]
[1769651753190,4.2930507,2990.6,2989.1,1.03146794]
[1769651753674,4.2930507,2990.6,2989.2,0.98160009]
[1769651753876,5.21032486,2990.6,2989.3,1.55314679]
[1769651754347,5.21032486,2990.6,2989.4,0.83628821]
[1769651755742,1.75322681,2990.6,2989.5,0.90979223]
[1769651756077,0.83595265,2990.6,2989.5,0.90979223]
[1769651756274,1.77229479,2990.8,2989.6,0.83623227]
[1769651757781,1.772183,2991.2,2989.9,0.90979223]
[1769651757954,3.3440989,2991.3,2990.1,0.90979223]
[1769651757955,0.83677218,2991.3,2990.1,0.90979223]
[1769651758278,2.61909286,2991.3,2990.2,0.83606447]
[1769651758954,1.68269482,2991.3,2990.2,0.90979223]
[1769651759280,0.93639804,2991.2,2990.1,0.83607316]
[1769651759584,0.93639804,2991.2,2989.7,17.84474276]
[1769651759585,0.93639804,2991.2,2989.7,14.5]
[1769651759780,0.93639804,2991.2,2989.8,0.83616734]
[1769651759947,0.93639804,2991.0,2989.8,0.83617431]
[1769651760152,0.93639804,2991.0,2989.8,0.83617058]
[1769651760453,0.8358688,2990.9,2989.7,0.90979223]
[1769651760669,0.8358688,2990.9,2989.8,0.90979223]
[1769651760871,0.8358688,2990.9,2989.9,0.49596601]
[1769651761071,0.93639804,2990.8,2989.9,0.49596601]
[1769651761272,0.93639804,2990.8,2989.7,4.04986785]
[1769651761273,0.93639804,2990.8,2989.7,0.04986785]
[1769651762055,0.83586002,2991.0,2989.7,0.95966008]
[1769651762279,0.83578496,2991.2,2990.0,0.8361204]
[1769651762471,0.83677519,2991.3,2990.1,0.95966008]
[1769651764788,0.001,2991.3,2990.2,0.83606447]
[1769651764989,0.001,2990.7,2990.3,0.51399825]
[1769651765373,0.001,2990.7,2990.1,1.79573112]
[1769651765773,0.001,2990.7,2990.1,0.88593889]
[1769651766004,0.001,2990.7,2990.1,0.83609126]
[1769651766202,0.001,2990.7,2990.1,0.83609027]
[1769651767696,0.001,2990.7,2989.8,0.83617633]
[1769651767870,0.001,2990.7,2989.9,1.96406155]
[1769651769787,0.93739804,2990.7,2989.7,0.88605643]
[1769651769980,0.93739804,2990.7,2989.7,0.88605741]
[1769651770496,0.93739804,2990.7,2989.8,0.83617552]
[1769651770801,0.93739804,2990.7,2989.7,0.88604708]
[1769651771002,0.001,2990.7,2989.8,1.25926946]
[1769651771385,0.001,2990.7,2989.8,2.16906169]
[1769651771805,0.93739804,2990.7,2989.8,0.42309697]
[1769651772093,0.93739804,2990.7,2989.4,0.7]
[1769651772290,0.93739804,2990.7,2989.4,0.83628603]
[1769651772481,0.93739804,2990.7,2989.3,0.04986785]
[1769651772678,0.93739804,2990.7,2989.6,0.83620908]
[1769651773208,0.93739804,2990.7,2989.7,0.83619037]
[1769651773388,0.93739804,2990.7,2989.8,1.25428547]
[1769651773782,0.83595265,2990.6,2989.8,1.25428547]
[1769651773974,0.83595265,2990.6,2989.8,0.41811172]
[1769651774323,0.83595265,2990.6,2989.8,1.25428494]
[1769651775507,1.77235069,2990.6,2989.8,0.41811172]
[1769651775716,1.77235069,2990.6,2989.7,0.83620256]
[1769651776198,1.77235069,2990.6,2989.4,0.83628821]
[1769651777422,1.77235069,2990.6,2989.4,15.33628821]
[1769651778720,1.77235069,2990.6,2989.4,0.83628821]
[1769651779216,0.93639804,2990.5,2989.4,0.83628821]
[1769651779511,0.93639804,2990.5,2989.5,1.87313089]
[1769651779694,0.93639804,2990.5,2989.4,0.83628821]
[1769651780612,0.83600856,2990.4,2989.4,0.83628821]
[1769651780818,1.7724066,2990.4,2989.4,0.83628821]
[1769651781117,0.93639804,2990.3,2989.4,0.83628821]
[1769651781486,0.93639804,2990.3,2989.3,0.83629751]
[1769651781678,0.93639804,2990.3,2989.4,1.86816656]
[1769651782084,0.93639804,2990.3,2989.3,0.83631461]
[1769651782612,0.93639804,2990.3,2989.1,17.8953345]
[1769651782613,0.83606447,2990.2,2989.1,17.8953345]
[1769651782782,0.93639804,2990.1,2989.2,0.83634417]
[1769651785994,0.8361204,2990.0,2989.2,0.83634417]
[1769651786194,0.8361204,2990.0,2989.3,0.42316924]
[1769651786405,1.80481332,2990.0,2989.3,0.42316924]
[1769651787517,0.83610534,2990.1,2989.3,0.42316924]
[1769651787901,3.34429268,2990.2,2989.3,0.42316924]
[1769651788225,4.3129856,2990.2,2989.3,0.42316924]
[1769651788427,4.3129856,2990.2,2989.3,1.25948437]
[1769651788730,0.96880843,2990.1,2989.3,1.2594838]
[1769651788926,0.96880843,2990.1,2989.3,0.42316924]
[1769651789428,0.96880843,2990.0,2989.1,0.88622113]
[1769651790225,0.83614836,2989.9,2989.1,0.88622113]
[1769651791130,1.80494837,2990.0,2989.1,0.88622113]
[1769651792999,0.96880843,2989.9,2989.0,0.002]
[1769651793421,0.83612866,2990.0,2989.0,0.83838934]
[1769651793624,0.83612866,2990.0,2989.1,0.83635112]
[1769651794010,1.80491134,2990.1,2989.1,0.88621897]
[1769651794214,1.80491134,2990.1,2989.1,1.85864208]
[1769651795428,3.34426683,2990.2,2989.1,1.85864208]
[1769651795429,0.83705027,2990.3,2989.2,0.97242311]
[1769651797042,0.83705027,2990.3,2989.3,1.8087393]
[1769651797339,0.83705027,2990.3,2989.4,1.96540041]
[1769651798172,0.001,2990.3,2989.4,1.96540041]
[1769651798342,0.001,2990.3,2989.5,0.97242311]
[1769651799061,0.001,2990.3,2989.6,0.83623227]
[1769651799233,0.001,2990.3,2989.6,1.80865538]
[1769651799430,0.001,2990.3,2989.7,0.52034523]
[1769651800460,0.001,2990.3,2989.6,0.83623227]
[1769651800660,0.001,2990.1,2989.6,0.83623227]
[1769651802994,0.001,2990.1,2989.5,0.83624054]
[1769651803337,0.001,2990.7,2989.9,0.97242311]
[1769651803541,0.001,2990.7,2990.2,0.04986785]
[1769651804546,0.001,2990.7,2989.8,0.04986785]
[1769651804765,1.80574025,2990.7,2989.8,0.04986785]
[1769651805074,0.96980843,2990.7,2989.8,0.04986785]
[1769651805240,0.96980843,2990.7,2989.9,0.83614836]
[1769651805439,0.96980843,2990.7,2990.0,0.42306097]
[1769651805637,0.001,2990.7,2990.0,0.42306097]
[1769651805878,0.001,2990.7,2990.0,1.39548408]
[1769651807248,0.001,2990.7,2990.1,0.83609243]
[1769651807756,0.001,2990.7,2990.2,0.97242311]
[1769651807958,0.001,2990.7,2990.3,0.18085155]
[1769651808158,0.001,2990.7,2990.1,0.83609243]
[1769651813380,0.001,2990.5,2990.1,0.83609243]
[1769651819655,0.76175538,2991.2,2990.2,0.95983528]
[1769651819987,0.76175538,2991.2,2990.2,1.00970313]
[1769651820186,0.76175538,2991.2,2990.3,0.18457956]
[1769651820388,0.001,2991.3,2990.3,1.14441484]
[1769651821268,0.001,2991.3,2990.4,0.83600856]
[1769651821463,0.92658531,2991.3,2990.4,0.83600856]
[1769651822795,7.42850118,2992.6,2990.9,0.04986785]
[1769651823091,0.92658531,2992.3,2991.3,0.04986785]